[Event "Titled Tuesday Blitz December 13 Late 2022"]
[White "Keymer, Vincent"]
[Black "Bernabeu Lopez, Carlos Javier"]
[WhiteFideId "12940690"]
[BlackFideId "2235366"]
[WhiteElo "2600"]
[BlackElo "2324"]
[Result "1-0"]
[Round "07"]
[TimeControl "180+1"]
[Date "2022.12.13"]
[WhiteClock "0:00:08"]
[BlackClock "0:00:58"]

1. Nf3 {[%clk 0:03:00]}  Nf6 {[%clk 0:03:00]} 2. c4 {[%clk 0:03:01]}  g6 {[%clk 0:03:00]} 3. Nc3 {[%clk 0:03:02]}  Bg7 {[%clk 0:03:01]} 4. g3 {[%clk 0:03:03]}  O-O {[%clk 0:03:01]} 5. Bg2 {[%clk 0:03:04]}  d6 {[%clk 0:03:01]} 6. d4 {[%clk 0:03:03]}  Nc6 {[%clk 0:03:01]} 7. O-O {[%clk 0:03:04]}  Bg4 {[%clk 0:03:01]} 8. h3 {[%clk 0:03:03]}  Bxf3 {[%clk 0:03:01]} 9. Bxf3 {[%clk 0:03:04]}  Nd7 {[%clk 0:03:02]} 10. e3 {[%clk 0:03:04]}  e5 {[%clk 0:03:02]} 11. d5 {[%clk 0:03:05]}  Ne7 {[%clk 0:03:01]} 12. e4 {[%clk 0:03:05]}  f5 {[%clk 0:03:01]} 13. h4 {[%clk 0:03:06]}  a5 {[%clk 0:02:59]} 14. h5 {[%clk 0:03:06]}  Nf6 {[%clk 0:02:58]} 15. Kg2 {[%clk 0:03:04]}  Qe8 {[%clk 0:02:55]} 16. Bg5 {[%clk 0:03:02]}  Qf7 {[%clk 0:02:46]} 17. Qe2 {[%clk 0:02:56]}  fxe4 {[%clk 0:02:27]} 18. Nxe4 {[%clk 0:02:53]}  Nxe4 {[%clk 0:02:25]} 19. Bxe4 {[%clk 0:02:52]}  Nf5 {[%clk 0:02:26]} 20. hxg6 {[%clk 0:02:14]}  hxg6 {[%clk 0:02:03]} 21. Qg4 {[%clk 0:02:04]}  Qd7 {[%clk 0:01:52]} 22. Qh3 {[%clk 0:02:03]}  Kf7 {[%clk 0:01:51]} 23. g4 {[%clk 0:01:38]}  Nd4 {[%clk 0:01:30]} 24. f4 {[%clk 0:01:37]}  Rh8 {[%clk 0:01:30]} 25. fxe5+ {[%clk 0:01:27]}  Kg8 {[%clk 0:01:31]} 26. e6 {[%clk 0:01:27]}  Qa4 {[%clk 0:01:13]} 27. Qd3 {[%clk 0:01:25]}  Be5 {[%clk 0:01:10]} 28. Rh1 {[%clk 0:01:22]}  Rxh1 {[%clk 0:01:10]} 29. Rxh1 {[%clk 0:01:21]}  Qxa2 {[%clk 0:01:10]} 30. Bxg6 {[%clk 0:01:17]}  Qxb2+ {[%clk 0:01:11]} 31. Qd2 {[%clk 0:01:14]}  Qxd2+ {[%clk 0:01:01]} 32. Bxd2 {[%clk 0:01:15]}  a4 {[%clk 0:00:58]} 33. e7 {[%clk 0:01:10]}  a3 {[%clk 0:00:59]} 34. Bc3 {[%clk 0:00:38]}  Nb3 {[%clk 0:00:56]} 35. Bxe5 {[%clk 0:00:21]}  dxe5 {[%clk 0:00:57]} 36. e8=Q+ {[%clk 0:00:20]}  Rxe8 {[%clk 0:00:57]} 37. Bxe8 {[%clk 0:00:21]}  a2 {[%clk 0:00:58]} 38. Kf3 {[%clk 0:00:20]}  a1=Q {[%clk 0:00:58]} 39. Rxa1 {[%clk 0:00:20]}  Nxa1 {[%clk 0:00:59]} 40. Ba4 {[%clk 0:00:20]}  Kg7 {[%clk 0:00:57]} 41. Ke4 {[%clk 0:00:17]}  Kf6 {[%clk 0:00:58]} 42. Bd1 {[%clk 0:00:18]}  b6 {[%clk 0:00:57]} 43. Ba4 {[%clk 0:00:13]}  Kg5 {[%clk 0:00:58]} 44. Bd1 {[%clk 0:00:12]}  Kf6 {[%clk 0:00:58]} 45. Kd3 {[%clk 0:00:12]}  Kg5 {[%clk 0:00:58]} 46. Ke3 {[%clk 0:00:12]}  Kg6 {[%clk 0:00:58]} 47. Kd2 {[%clk 0:00:10]}  Kg5 {[%clk 0:00:58]} 48. Kc3 {[%clk 0:00:08]}  e4 {[%clk 0:00:58]} 49. Kb2 {[%clk 0:00:08]} 1-0


[Site "https://www.chess.com"]

[Event "Titled Tuesday Blitz December 13 Late 2022"]
[White "Kim, Sergey"]
[Black "Meduri, Aakaash"]
[WhiteFideId "13700570"]
[BlackFideId "2032252"]
[WhiteElo "2623"]
[BlackElo "2113"]
[Result "0-1"]
[Round "07"]
[TimeControl "180+1"]
[Date "2022.12.14"]
[WhiteClock "0:00:06"]
[BlackClock "0:00:23"]

1. d4 {[%clk 0:03:00]}  d5 {[%clk 0:02:59]} 2. c4 {[%clk 0:03:00]}  c6 {[%clk 0:02:59]} 3. Nf3 {[%clk 0:03:00]}  Nf6 {[%clk 0:02:59]} 4. Qc2 {[%clk 0:03:00]}  dxc4 {[%clk 0:02:59]} 5. Qxc4 {[%clk 0:02:59]}  Bf5 {[%clk 0:02:58]} 6. e3 {[%clk 0:02:56]}  e6 {[%clk 0:02:57]} 7. Bd3 {[%clk 0:02:56]}  Bxd3 {[%clk 0:02:55]} 8. Qxd3 {[%clk 0:02:56]}  Nbd7 {[%clk 0:02:55]} 9. O-O {[%clk 0:02:56]}  Bd6 {[%clk 0:02:55]} 10. Nc3 {[%clk 0:02:55]}  O-O {[%clk 0:02:56]} 11. e4 {[%clk 0:02:56]}  e5 {[%clk 0:02:54]} 12. Bg5 {[%clk 0:02:55]}  h6 {[%clk 0:02:53]} 13. Bh4 {[%clk 0:02:55]}  Re8 {[%clk 0:02:52]} 14. Rfe1 {[%clk 0:02:54]}  Qc7 {[%clk 0:02:49]} 15. Rac1 {[%clk 0:02:51]}  a6 {[%clk 0:02:43]} 16. Nd5 {[%clk 0:02:42]}  Nxd5 {[%clk 0:02:31]} 17. exd5 {[%clk 0:02:41]}  exd4 {[%clk 0:02:27]} 18. Qxd4 {[%clk 0:02:21]}  c5 {[%clk 0:02:22]} 19. Qg4 {[%clk 0:02:10]}  Ne5 {[%clk 0:02:17]} 20. Nxe5 {[%clk 0:02:01]}  Bxe5 {[%clk 0:02:17]} 21. b4 {[%clk 0:01:54]}  Bxh2+ {[%clk 0:02:00]} 22. Kh1 {[%clk 0:01:54]}  Rxe1+ {[%clk 0:02:01]} 23. Rxe1 {[%clk 0:01:53]}  Bd6 {[%clk 0:02:02]} 24. Bf6 {[%clk 0:01:48]}  Bf8 {[%clk 0:02:02]} 25. Be5 {[%clk 0:01:08]}  Qb6 {[%clk 0:01:48]} 26. bxc5 {[%clk 0:01:02]}  Qxc5 {[%clk 0:01:47]} 27. Qf3 {[%clk 0:00:54]}  Rd8 {[%clk 0:01:36]} 28. Rd1 {[%clk 0:00:52]}  Bd6 {[%clk 0:01:29]} 29. Bd4 {[%clk 0:00:42]}  Qc2 {[%clk 0:01:25]} 30. Qg4 {[%clk 0:00:24]}  Bf8 {[%clk 0:01:06]} 31. Be3 {[%clk 0:00:24]}  Kh8 {[%clk 0:00:52]} 32. a4 {[%clk 0:00:19]}  f5 {[%clk 0:00:29]} 33. Qf3 {[%clk 0:00:17]}  Qxa4 {[%clk 0:00:26]} 34. Rd4 {[%clk 0:00:15]}  Qa1+ {[%clk 0:00:21]} 35. Kh2 {[%clk 0:00:15]}  Bd6+ {[%clk 0:00:22]} 36. g3 {[%clk 0:00:16]}  f4 {[%clk 0:00:21]} 37. Rd1 {[%clk 0:00:11]}  Qf6 {[%clk 0:00:19]} 38. Bxf4 {[%clk 0:00:08]}  Bxf4 {[%clk 0:00:20]} 39. gxf4 {[%clk 0:00:07]}  Rd6 {[%clk 0:00:20]} 40. Qe4 {[%clk 0:00:07]}  Qh4+ {[%clk 0:00:20]} 41. Kg2 {[%clk 0:00:07]}  Qg4+ {[%clk 0:00:21]} 42. Kh2 {[%clk 0:00:07]}  Qxd1 {[%clk 0:00:21]} 43. Qe8+ {[%clk 0:00:06]}  Kh7 {[%clk 0:00:22]} 44. Qe4+ {[%clk 0:00:06]}  Rg6 {[%clk 0:00:23]} 0-1


[Site "https://www.chess.com"]

[Event "Titled Tuesday Blitz December 13 Late 2022"]
[White "Korchmar, Vasiliy"]
[Black "Vlassov, Nikolai"]
[WhiteFideId "24131750"]
[BlackFideId "4103360"]
[WhiteElo "2370"]
[BlackElo "2324"]
[Result "1-0"]
[Round "07"]
[TimeControl "180+1"]
[Date "2022.12.13"]
[WhiteClock "0:00:19"]
[BlackClock "0:00:01"]

1. e4 {[%clk 0:03:00]}  c5 {[%clk 0:02:57]} 2. Nf3 {[%clk 0:03:00]}  d6 {[%clk 0:02:57]} 3. d4 {[%clk 0:03:01]}  cxd4 {[%clk 0:02:57]} 4. Nxd4 {[%clk 0:03:02]}  Nf6 {[%clk 0:02:58]} 5. Nc3 {[%clk 0:03:02]}  g6 {[%clk 0:02:58]} 6. Be3 {[%clk 0:03:02]}  a6 {[%clk 0:02:57]} 7. f3 {[%clk 0:03:01]}  Nbd7 {[%clk 0:02:56]} 8. Qd2 {[%clk 0:03:02]}  Qc7 {[%clk 0:02:57]} 9. O-O-O {[%clk 0:03:00]}  b5 {[%clk 0:02:56]} 10. Bh6 {[%clk 0:02:52]}  Bb7 {[%clk 0:02:55]} 11. Kb1 {[%clk 0:02:41]}  Rc8 {[%clk 0:02:20]} 12. a3 {[%clk 0:02:37]}  Nb6 {[%clk 0:02:19]} 13. Bxf8 {[%clk 0:02:34]}  Rxf8 {[%clk 0:02:16]} 14. Bd3 {[%clk 0:02:22]}  Nfd7 {[%clk 0:02:16]} 15. f4 {[%clk 0:02:16]}  Nc4 {[%clk 0:02:07]} 16. Bxc4 {[%clk 0:02:14]}  Qxc4 {[%clk 0:02:07]} 17. Rhe1 {[%clk 0:02:10]}  Nb6 {[%clk 0:01:42]} 18. e5 {[%clk 0:02:05]}  d5 {[%clk 0:01:32]} 19. e6 {[%clk 0:02:05]}  Qc7 {[%clk 0:00:56]} 20. exf7+ {[%clk 0:01:57]}  Rxf7 {[%clk 0:00:54]} 21. Ne6 {[%clk 0:01:56]}  Qc6 {[%clk 0:00:45]} 22. Qd4 {[%clk 0:01:52]}  Kd7 {[%clk 0:00:19]} 23. g4 {[%clk 0:01:51]}  Nc4 {[%clk 0:00:17]} 24. Ne4 {[%clk 0:01:29]}  Kxe6 {[%clk 0:00:09]} 25. Ng5+ {[%clk 0:00:47]}  Kd7 {[%clk 0:00:09]} 26. Nxf7 {[%clk 0:00:48]}  Qf6 {[%clk 0:00:08]} 27. Ne5+ {[%clk 0:00:44]}  Kc7 {[%clk 0:00:09]} 28. Nxc4 {[%clk 0:00:41]}  dxc4 {[%clk 0:00:08]} 29. Qxf6 {[%clk 0:00:40]}  exf6 {[%clk 0:00:08]} 30. Re7+ {[%clk 0:00:40]}  Kb6 {[%clk 0:00:09]} 31. Rd6+ {[%clk 0:00:39]}  Kc5 {[%clk 0:00:09]} 32. Rxf6 {[%clk 0:00:38]}  Bf3 {[%clk 0:00:09]} 33. f5 {[%clk 0:00:34]}  Bxg4 {[%clk 0:00:06]} 34. fxg6 {[%clk 0:00:34]}  hxg6 {[%clk 0:00:06]} 35. Rxg6 {[%clk 0:00:35]}  Bh3 {[%clk 0:00:05]} 36. Re5+ {[%clk 0:00:28]}  Kd4 {[%clk 0:00:05]} 37. Rh5 {[%clk 0:00:29]}  Bf1 {[%clk 0:00:02]} 38. Rg4+ {[%clk 0:00:22]}  Ke3 {[%clk 0:00:02]} 39. Rg3+ {[%clk 0:00:19]}  Kf2 {[%clk 0:00:01]} 40. Rf5+ {[%clk 0:00:19]}  Ke1 {[%clk 0:00:02]} 41. Rg1 {[%clk 0:00:19]}  Rd8 {[%clk 0:00:01]} 42. Rgxf1+ {[%clk 0:00:19]}  Ke2 {[%clk 0:00:02]} 43. h4 {[%clk 0:00:19]}  c3 {[%clk 0:00:01]} 44. bxc3 {[%clk 0:00:19]} 1-0


[Site "https://www.chess.com"]

[Event "Titled Tuesday Blitz December 13 Late 2022"]
[White "Kupervaser, Erez"]
[Black "Grot, Blazej"]
[WhiteFideId "2814587"]
[BlackFideId "21835845"]
[WhiteElo "2251"]
[BlackElo "1823"]
[Result "1-0"]
[Round "07"]
[TimeControl "180+1"]
[Date "2022.12.14"]
[WhiteClock "0:00:17"]
[BlackClock "0:00:03"]

1. e4 {[%clk 0:02:59]}  d6 {[%clk 0:02:58]} 2. d4 {[%clk 0:02:58]}  Nf6 {[%clk 0:02:59]} 3. Nc3 {[%clk 0:02:58]}  e5 {[%clk 0:02:59]} 4. f4 {[%clk 0:02:55]}  exd4 {[%clk 0:02:56]} 5. Qxd4 {[%clk 0:02:54]}  Nc6 {[%clk 0:02:57]} 6. Bb5 {[%clk 0:02:54]}  Bd7 {[%clk 0:02:56]} 7. Bxc6 {[%clk 0:02:54]}  Bxc6 {[%clk 0:02:57]} 8. Nf3 {[%clk 0:02:54]}  Be7 {[%clk 0:02:57]} 9. Bd2 {[%clk 0:02:51]}  O-O {[%clk 0:02:56]} 10. O-O-O {[%clk 0:02:48]}  b5 {[%clk 0:02:54]} 11. g4 {[%clk 0:02:43]}  Nxg4 {[%clk 0:02:40]} 12. Rhg1 {[%clk 0:02:36]}  Bf6 {[%clk 0:02:40]} 13. Qb4 {[%clk 0:01:37]}  a5 {[%clk 0:02:26]} 14. Qb3 {[%clk 0:01:36]}  Nf2 {[%clk 0:02:15]} 15. Rde1 {[%clk 0:01:33]}  b4 {[%clk 0:02:14]} 16. Nd5 {[%clk 0:01:31]}  a4 {[%clk 0:01:45]} 17. Qc4 {[%clk 0:01:30]}  b3 {[%clk 0:01:40]} 18. Nxf6+ {[%clk 0:01:24]}  Qxf6 {[%clk 0:01:34]} 19. a3 {[%clk 0:01:24]}  bxc2 {[%clk 0:01:07]} 20. Bc3 {[%clk 0:01:19]}  Qxf4+ {[%clk 0:01:06]} 21. Nd2 {[%clk 0:01:17]}  g6 {[%clk 0:00:54]} 22. Qd4 {[%clk 0:01:16]}  f6 {[%clk 0:00:38]} 23. Rgf1 {[%clk 0:01:17]}  Bb5 {[%clk 0:00:13]} 24. Rxf2 {[%clk 0:01:10]}  Qe5 {[%clk 0:00:13]} 25. Nf3 {[%clk 0:00:35]}  Qe6 {[%clk 0:00:11]} 26. Qd5 {[%clk 0:00:23]}  Bc4 {[%clk 0:00:06]} 27. Qxe6+ {[%clk 0:00:23]}  Bxe6 {[%clk 0:00:06]} 28. Nd4 {[%clk 0:00:23]}  Bb3 {[%clk 0:00:06]} 29. Nxc2 {[%clk 0:00:22]}  Rae8 {[%clk 0:00:04]} 30. Rxf6 {[%clk 0:00:20]}  Rxf6 {[%clk 0:00:03]} 31. Bxf6 {[%clk 0:00:21]}  Kf7 {[%clk 0:00:02]} 32. Bc3 {[%clk 0:00:20]}  Ke6 {[%clk 0:00:02]} 33. Nd4+ {[%clk 0:00:20]}  Kd7 {[%clk 0:00:02]} 34. Nxb3 {[%clk 0:00:20]}  axb3 {[%clk 0:00:03]} 35. Kd2 {[%clk 0:00:21]}  Rf8 {[%clk 0:00:03]} 36. Ke3 {[%clk 0:00:21]}  Ke6 {[%clk 0:00:02]} 37. Re2 {[%clk 0:00:21]}  d5 {[%clk 0:00:02]} 38. exd5+ {[%clk 0:00:21]}  Kxd5 {[%clk 0:00:03]} 39. Rf2 {[%clk 0:00:21]}  Re8+ {[%clk 0:00:03]} 40. Kd3 {[%clk 0:00:21]}  c5 {[%clk 0:00:03]} 41. Rf4 {[%clk 0:00:21]}  c4+ {[%clk 0:00:03]} 42. Rxc4 {[%clk 0:00:19]}  Rf8 {[%clk 0:00:03]} 43. Re4 {[%clk 0:00:17]}  Rf2 {[%clk 0:00:02]} 44. Re5+ {[%clk 0:00:18]}  Kd6 {[%clk 0:00:02]} 45. Re2 {[%clk 0:00:18]}  Rf3+ {[%clk 0:00:02]} 46. Kc4 {[%clk 0:00:18]}  Rf1 {[%clk 0:00:02]} 47. Kxb3 {[%clk 0:00:18]}  Rh1 {[%clk 0:00:01]} 48. a4 {[%clk 0:00:19]}  Kc5 {[%clk 0:00:02]} 49. Re5+ {[%clk 0:00:18]}  Kb6 {[%clk 0:00:03]} 50. Re2 {[%clk 0:00:16]}  Rg1 {[%clk 0:00:03]} 51. Kc4 {[%clk 0:00:16]}  Rg4+ {[%clk 0:00:03]} 52. Bd4+ {[%clk 0:00:16]}  Ka5 {[%clk 0:00:03]} 53. b4+ {[%clk 0:00:17]}  Kxa4 {[%clk 0:00:03]} 54. Ra2# {[%clk 0:00:17]} 1-0


[Site "https://www.chess.com"]

[Event "Titled Tuesday Blitz December 13 Late 2022"]
[White "Lacasa Diaz, Jose Antonio"]
[Black "Khandelwal, Ankush"]
[WhiteFideId "2203375"]
[BlackFideId "413470"]
[WhiteElo "2338"]
[BlackElo "2271"]
[Result "1-0"]
[Round "07"]
[TimeControl "180+1"]
[Date "2022.12.14"]
[WhiteClock "0:01:54"]
[BlackClock "0:01:36"]

1. e4 {[%clk 0:03:00]}  c5 {[%clk 0:03:00]} 2. Nf3 {[%clk 0:03:00]}  d6 {[%clk 0:03:00]} 3. d4 {[%clk 0:03:01]}  cxd4 {[%clk 0:03:01]} 4. Nxd4 {[%clk 0:03:01]}  Nf6 {[%clk 0:03:01]} 5. Nc3 {[%clk 0:03:01]}  a6 {[%clk 0:03:02]} 6. Be3 {[%clk 0:03:01]}  e5 {[%clk 0:03:02]} 7. Nb3 {[%clk 0:03:01]}  Be7 {[%clk 0:03:02]} 8. Qd2 {[%clk 0:03:02]}  Ng4 {[%clk 0:02:42]} 9. g3 {[%clk 0:03:01]}  Nxe3 {[%clk 0:02:41]} 10. Qxe3 {[%clk 0:03:02]}  Be6 {[%clk 0:02:41]} 11. O-O-O {[%clk 0:03:01]}  Nd7 {[%clk 0:02:33]} 12. f4 {[%clk 0:03:01]}  Rc8 {[%clk 0:02:29]} 13. Kb1 {[%clk 0:03:01]}  b5 {[%clk 0:02:26]} 14. f5 {[%clk 0:02:58]}  Bc4 {[%clk 0:02:25]} 15. Bxc4 {[%clk 0:02:37]}  bxc4 {[%clk 0:02:26]} 16. Nd2 {[%clk 0:02:37]}  Bg5 {[%clk 0:02:21]} 17. Qe2 {[%clk 0:02:37]}  Nb6 {[%clk 0:02:18]} 18. Nf3 {[%clk 0:02:33]}  O-O {[%clk 0:02:14]} 19. h4 {[%clk 0:02:25]}  Bh6 {[%clk 0:02:14]} 20. Nxe5 {[%clk 0:02:18]}  dxe5 {[%clk 0:01:59]} 21. Rxd8 {[%clk 0:02:15]}  Rfxd8 {[%clk 0:02:00]} 22. Rd1 {[%clk 0:02:13]}  Kf8 {[%clk 0:01:54]} 23. a4 {[%clk 0:02:07]}  Ke8 {[%clk 0:01:49]} 24. a5 {[%clk 0:02:05]}  Nd7 {[%clk 0:01:43]} 25. Nd5 {[%clk 0:02:02]}  Kf8 {[%clk 0:01:39]} 26. Nb6 {[%clk 0:01:57]}  Nxb6 {[%clk 0:01:38]} 27. axb6 {[%clk 0:01:57]}  Rxd1+ {[%clk 0:01:38]} 28. Qxd1 {[%clk 0:01:56]}  Ke7 {[%clk 0:01:38]} 29. Qd5 {[%clk 0:01:55]}  Be3 {[%clk 0:01:36]} 30. b7 {[%clk 0:01:54]} 1-0


[Site "https://www.chess.com"]

[Event "Titled Tuesday Blitz December 13 Late 2022"]
[White "Levine, David"]
[Black "Prohorov, Olexandr"]
[WhiteFideId "2011611"]
[BlackFideId "14105578"]
[WhiteElo "2128"]
[BlackElo "1993"]
[Result "0-1"]
[Round "07"]
[TimeControl "180+1"]
[Date "2022.12.14"]
[WhiteClock "0:00:02"]
[BlackClock "0:01:17"]

1. d4 {[%clk 0:02:59]}  g6 {[%clk 0:02:59]} 2. g3 {[%clk 0:02:58]}  Bg7 {[%clk 0:03:00]} 3. Bg2 {[%clk 0:02:59]}  f5 {[%clk 0:03:00]} 4. Nf3 {[%clk 0:02:59]}  Nf6 {[%clk 0:03:01]} 5. O-O {[%clk 0:02:59]}  O-O {[%clk 0:03:02]} 6. c4 {[%clk 0:02:59]}  d6 {[%clk 0:03:03]} 7. Nc3 {[%clk 0:02:59]}  Qe8 {[%clk 0:03:04]} 8. Qb3 {[%clk 0:02:56]}  Nc6 {[%clk 0:03:00]} 9. d5 {[%clk 0:02:50]}  Ne5 {[%clk 0:03:01]} 10. Nxe5 {[%clk 0:02:49]}  dxe5 {[%clk 0:03:01]} 11. e4 {[%clk 0:02:49]}  f4 {[%clk 0:02:58]} 12. Nb5 {[%clk 0:02:34]}  Qd8 {[%clk 0:02:54]} 13. gxf4 {[%clk 0:02:26]}  Nh5 {[%clk 0:02:54]} 14. fxe5 {[%clk 0:02:06]}  Bxe5 {[%clk 0:02:55]} 15. f4 {[%clk 0:01:38]}  Nxf4 {[%clk 0:02:52]} 16. Be3 {[%clk 0:01:12]}  e6 {[%clk 0:02:45]} 17. Bf2 {[%clk 0:01:08]}  Qg5 {[%clk 0:02:44]} 18. Bg3 {[%clk 0:01:06]}  exd5 {[%clk 0:02:39]} 19. cxd5 {[%clk 0:01:05]}  h5 {[%clk 0:02:35]} 20. Rxf4 {[%clk 0:00:40]}  Bxf4 {[%clk 0:02:28]} 21. d6+ {[%clk 0:00:40]}  Kh7 {[%clk 0:02:26]} 22. Nxc7 {[%clk 0:00:34]}  Rb8 {[%clk 0:02:24]} 23. Rf1 {[%clk 0:00:28]}  Bd7 {[%clk 0:02:12]} 24. Ne6 {[%clk 0:00:18]}  Bxe6 {[%clk 0:02:09]} 25. Qxe6 {[%clk 0:00:18]}  Rbe8 {[%clk 0:02:09]} 26. Bxf4 {[%clk 0:00:16]}  Qxg2+ {[%clk 0:01:45]} 27. Kxg2 {[%clk 0:00:16]}  Rxe6 {[%clk 0:01:46]} 28. e5 {[%clk 0:00:16]}  Rf7 {[%clk 0:01:37]} 29. Rd1 {[%clk 0:00:15]}  Rxf4 {[%clk 0:01:33]} 30. d7 {[%clk 0:00:15]}  Rf8 {[%clk 0:01:34]} 31. d8=Q {[%clk 0:00:14]}  Rxd8 {[%clk 0:01:35]} 32. Rxd8 {[%clk 0:00:15]}  Rxe5 {[%clk 0:01:35]} 33. Rd7+ {[%clk 0:00:15]}  Kh6 {[%clk 0:01:36]} 34. Rxb7 {[%clk 0:00:16]}  Ra5 {[%clk 0:01:36]} 35. a3 {[%clk 0:00:15]}  Kg5 {[%clk 0:01:36]} 36. Kg3 {[%clk 0:00:14]}  h4+ {[%clk 0:01:36]} 37. Kh3 {[%clk 0:00:14]}  a6 {[%clk 0:01:37]} 38. Rb6 {[%clk 0:00:12]}  Kh5 {[%clk 0:01:34]} 39. Kg2 {[%clk 0:00:10]}  g5 {[%clk 0:01:35]} 40. h3 {[%clk 0:00:10]}  Ra4 {[%clk 0:01:26]} 41. Rc6 {[%clk 0:00:07]}  a5 {[%clk 0:01:25]} 42. Rc5 {[%clk 0:00:06]}  Kg6 {[%clk 0:01:20]} 43. Rb5 {[%clk 0:00:06]}  Kf6 {[%clk 0:01:21]} 44. Rc5 {[%clk 0:00:06]}  Re4 {[%clk 0:01:17]} 45. Rxa5 {[%clk 0:00:05]}  Re2+ {[%clk 0:01:18]} 46. Kf3 {[%clk 0:00:05]}  Rxb2 {[%clk 0:01:19]} 47. Ra6+ {[%clk 0:00:03]}  Kf5 {[%clk 0:01:17]} 48. Ra5+ {[%clk 0:00:03]}  Kg6 {[%clk 0:01:18]} 49. Kg4 {[%clk 0:00:03]}  Rb6 {[%clk 0:01:17]} 50. a4 {[%clk 0:00:03]}  Rf6 {[%clk 0:01:17]} 51. Rb5 {[%clk 0:00:02]}  Rf4# {[%clk 0:01:17]} 0-1


[Site "https://www.chess.com"]

[Event "Titled Tuesday Blitz December 13 Late 2022"]
[White "Liu, Kelsey"]
[Black "Rangel, Daniel"]
[WhiteFideId "30944481"]
[BlackFideId "2124475"]
[WhiteElo "2279"]
[BlackElo "2225"]
[Result "1-0"]
[Round "07"]
[TimeControl "180+1"]
[Date "2022.12.14"]
[WhiteClock "0:00:48"]
[BlackClock "0:01:11"]

1. e4 {[%clk 0:03:00]}  c5 {[%clk 0:02:59]} 2. Nf3 {[%clk 0:02:59]}  d6 {[%clk 0:03:00]} 3. Nc3 {[%clk 0:02:59]}  Nf6 {[%clk 0:03:00]} 4. e5 {[%clk 0:03:00]}  g6 {[%clk 0:03:00]} 5. exf6 {[%clk 0:03:00]}  exf6 {[%clk 0:03:01]} 6. Bb5+ {[%clk 0:02:59]}  Nd7 {[%clk 0:03:01]} 7. O-O {[%clk 0:02:59]}  Be7 {[%clk 0:03:00]} 8. Re1 {[%clk 0:02:59]}  O-O {[%clk 0:03:00]} 9. Nd5 {[%clk 0:02:59]}  Ne5 {[%clk 0:02:59]} 10. d4 {[%clk 0:02:50]}  cxd4 {[%clk 0:02:57]} 11. Nxd4 {[%clk 0:02:46]}  a6 {[%clk 0:02:53]} 12. Bf1 {[%clk 0:02:43]}  Re8 {[%clk 0:02:48]} 13. f4 {[%clk 0:02:19]}  Bf8 {[%clk 0:02:30]} 14. fxe5 {[%clk 0:02:17]}  fxe5 {[%clk 0:02:31]} 15. Nf3 {[%clk 0:02:13]}  b5 {[%clk 0:02:28]} 16. Bg5 {[%clk 0:02:11]}  Qa5 {[%clk 0:02:18]} 17. Nf6+ {[%clk 0:02:10]}  Kh8 {[%clk 0:02:18]} 18. Nxe8 {[%clk 0:02:10]}  Bb7 {[%clk 0:02:13]} 19. Nf6 {[%clk 0:02:02]}  Bg7 {[%clk 0:02:04]} 20. Qxd6 {[%clk 0:01:53]}  Rd8 {[%clk 0:02:00]} 21. Qe7 {[%clk 0:01:53]}  Qb6+ {[%clk 0:01:54]} 22. Kh1 {[%clk 0:01:49]}  h6 {[%clk 0:01:51]} 23. Nd7 {[%clk 0:01:39]}  Rxd7 {[%clk 0:01:46]} 24. Qe8+ {[%clk 0:01:39]}  Kh7 {[%clk 0:01:42]} 25. Qxd7 {[%clk 0:01:40]}  hxg5 {[%clk 0:01:42]} 26. Nxg5+ {[%clk 0:01:41]}  Kh6 {[%clk 0:01:35]} 27. Nxf7+ {[%clk 0:01:40]}  Kh7 {[%clk 0:01:35]} 28. Nd6 {[%clk 0:01:22]}  Bc6 {[%clk 0:01:28]} 29. Qh3+ {[%clk 0:01:14]}  Kg8 {[%clk 0:01:24]} 30. Qe6+ {[%clk 0:01:13]}  Kh7 {[%clk 0:01:24]} 31. Bd3 {[%clk 0:01:07]}  Qf2 {[%clk 0:01:23]} 32. Qxg6+ {[%clk 0:01:05]}  Kg8 {[%clk 0:01:23]} 33. Rf1 {[%clk 0:00:57]}  Bxg2+ {[%clk 0:01:12]} 34. Qxg2 {[%clk 0:00:58]}  Qxg2+ {[%clk 0:01:11]} 35. Kxg2 {[%clk 0:00:59]}  Bf8 {[%clk 0:01:10]} 36. Nf7 {[%clk 0:00:53]}  Bc5 {[%clk 0:01:09]} 37. Ng5 {[%clk 0:00:52]}  Ba7 {[%clk 0:01:09]} 38. Rf7 {[%clk 0:00:51]}  Bb6 {[%clk 0:01:10]} 39. Bh7+ {[%clk 0:00:50]}  Kh8 {[%clk 0:01:10]} 40. h4 {[%clk 0:00:48]}  b4 {[%clk 0:01:11]} 41. h5 {[%clk 0:00:48]}  b3 {[%clk 0:01:12]} 42. h6 {[%clk 0:00:47]}  bxc2 {[%clk 0:01:11]} 43. Rf8# {[%clk 0:00:48]} 1-0


[Site "https://www.chess.com"]

[Event "Titled Tuesday Blitz December 13 Late 2022"]
[White "Martinez Alcantara, Jose Eduardo"]
[Black "Crevatin, Leo"]
[WhiteFideId "3805662"]
[BlackFideId "1726307"]
[WhiteElo "2707"]
[BlackElo "2190"]
[Result "1-0"]
[Round "07"]
[TimeControl "180+1"]
[Date "2022.12.13"]
[WhiteClock "0:01:54"]
[BlackClock "0:00:03"]

1. e4 {[%clk 0:03:00]}  c5 {[%clk 0:02:57]} 2. Nf3 {[%clk 0:03:00]}  d6 {[%clk 0:02:58]} 3. c3 {[%clk 0:03:00]}  Nf6 {[%clk 0:02:57]} 4. h3 {[%clk 0:03:01]}  Nc6 {[%clk 0:02:47]} 5. Bd3 {[%clk 0:03:01]}  e5 {[%clk 0:02:39]} 6. Bc2 {[%clk 0:03:00]}  g6 {[%clk 0:02:24]} 7. O-O {[%clk 0:02:59]}  Bg7 {[%clk 0:02:24]} 8. d4 {[%clk 0:03:00]}  O-O {[%clk 0:02:05]} 9. dxe5 {[%clk 0:02:54]}  dxe5 {[%clk 0:02:04]} 10. Be3 {[%clk 0:02:55]}  b6 {[%clk 0:01:59]} 11. Qe2 {[%clk 0:02:52]}  Qc7 {[%clk 0:01:51]} 12. a4 {[%clk 0:02:49]}  Be6 {[%clk 0:01:44]} 13. Na3 {[%clk 0:02:45]}  Rad8 {[%clk 0:01:40]} 14. Bg5 {[%clk 0:02:41]}  h6 {[%clk 0:01:38]} 15. Bxf6 {[%clk 0:02:40]}  Bxf6 {[%clk 0:01:38]} 16. Nc4 {[%clk 0:02:39]}  Ne7 {[%clk 0:01:14]} 17. Ne3 {[%clk 0:02:36]}  Bg5 {[%clk 0:01:09]} 18. Rfd1 {[%clk 0:02:34]}  Bxe3 {[%clk 0:01:07]} 19. Qxe3 {[%clk 0:02:35]}  Kg7 {[%clk 0:01:05]} 20. Bd3 {[%clk 0:02:27]}  g5 {[%clk 0:01:02]} 21. Bf1 {[%clk 0:02:25]}  Ng6 {[%clk 0:01:01]} 22. g3 {[%clk 0:02:25]}  Rxd1 {[%clk 0:00:58]} 23. Rxd1 {[%clk 0:02:26]}  Rd8 {[%clk 0:00:58]} 24. Ra1 {[%clk 0:02:20]}  Qd7 {[%clk 0:00:52]} 25. Kh2 {[%clk 0:02:19]}  f6 {[%clk 0:00:31]} 26. a5 {[%clk 0:02:19]}  h5 {[%clk 0:00:31]} 27. axb6 {[%clk 0:02:19]}  axb6 {[%clk 0:00:32]} 28. Ra6 {[%clk 0:02:17]}  Rb8 {[%clk 0:00:31]} 29. Qd2 {[%clk 0:02:16]}  Qc7 {[%clk 0:00:21]} 30. b4 {[%clk 0:02:10]}  cxb4 {[%clk 0:00:17]} 31. cxb4 {[%clk 0:02:10]}  g4 {[%clk 0:00:14]} 32. hxg4 {[%clk 0:02:08]}  hxg4 {[%clk 0:00:15]} 33. Ne1 {[%clk 0:02:07]}  Ne7 {[%clk 0:00:11]} 34. Kg1 {[%clk 0:02:05]}  Nc6 {[%clk 0:00:10]} 35. Nc2 {[%clk 0:02:05]}  Rd8 {[%clk 0:00:08]} 36. Qc3 {[%clk 0:02:05]}  Qb7 {[%clk 0:00:08]} 37. Qa3 {[%clk 0:02:03]}  Kg6 {[%clk 0:00:06]} 38. b5 {[%clk 0:01:56]}  Nd4 {[%clk 0:00:07]} 39. Nxd4 {[%clk 0:01:57]}  Rxd4 {[%clk 0:00:07]} 40. Ra7 {[%clk 0:01:57]}  Qxe4 {[%clk 0:00:03]} 41. Qf8 {[%clk 0:01:53]}  Bd5 {[%clk 0:00:03]} 42. Qg7+ {[%clk 0:01:54]}  Kf5 {[%clk 0:00:03]} 43. Qh7+ {[%clk 0:01:54]}  Ke6 {[%clk 0:00:03]} 44. Qd7# {[%clk 0:01:54]} 1-0


[Site "https://www.chess.com"]